bitfinex/quotes_BTCUSD_20240627
["timestamp","ask_amount","ask_price","bid_price","bid_amount"]
[1719458819586,0.16324,61260.0,61253.0,0.489767]
[1719458819740,0.16324,61260.0,61253.0,0.65210598]
[1719458819741,0.65272337,61259.0,61253.0,0.65210598]
[1719458819944,0.65272337,61259.0,61254.0,0.163253]
[1719458821411,0.65272337,61259.0,61255.0,0.08130346]
[1719458823544,0.65272337,61259.0,61255.0,0.24455446]
[1719458823766,0.65972337,61259.0,61255.0,0.24455446]
[1719458824172,0.65272337,61259.0,61255.0,0.24455446]
[1719458824583,0.65872337,61259.0,61255.0,0.08230346]
[1719458824752,0.65272337,61259.0,61255.0,0.08130346]
[1719458825208,0.65672337,61259.0,61257.0,0.163245]
[1719458826901,0.65272337,61259.0,61257.0,0.163245]
[1719458827295,0.65672337,61259.0,61257.0,0.163245]
[1719458827504,0.65672337,61259.0,61255.0,0.08130346]
[1719458827505,0.65672337,61259.0,61255.0,0.24455446]
[1719458827713,0.65672337,61259.0,61256.0,0.163249]
[1719458828606,0.65272337,61259.0,61256.0,0.163249]
[1719458828856,0.0954,61257.0,61256.0,0.163249]
[1719458829205,0.74812337,61257.0,61256.0,0.163249]
[1719458830191,0.74812337,61257.0,61256.0,0.17091295]
[1719458833024,0.74812337,61257.0,61256.0,0.00766395]
[1719458834045,0.91136937,61257.0,61256.0,0.00766395]
[1719458834253,0.94092517,61257.0,61256.0,0.00766395]
[1719458834457,0.94092517,61257.0,61255.0,0.000924]
[1719458834665,0.0255558,61256.0,61255.0,0.000924]
[1719458834865,0.67827917,61256.0,61255.0,0.000924]
[1719458837107,0.68127917,61256.0,61255.0,0.000924]
[1719458841602,0.77667917,61256.0,61255.0,0.000924]
[1719458844251,0.93992817,61256.0,61255.0,0.000924]
[1719458845457,1.00059954,61256.0,61255.0,0.000924]
[1719458845911,0.93992817,61256.0,61255.0,0.000924]
[1719458847751,1.59292417,61256.0,61255.0,0.000924]
[1719458847956,1.94392236,61256.0,61255.0,0.000924]
[1719458848296,2.14802217,61256.0,61255.0,0.000924]
[1719458848502,2.37102217,61256.0,61255.0,0.000924]
[1719458848668,2.17102217,61256.0,61255.0,0.000924]
[1719458849444,2.33335588,61256.0,61255.0,0.000924]
[1719458851428,2.33035588,61256.0,61255.0,0.000924]
[1719458851862,2.34435588,61256.0,61255.0,0.001924]
[1719458852010,2.34435588,61256.0,61255.0,0.000924]
[1719458852207,3.06509486,61256.0,61255.0,0.000924]
[1719458852418,3.06509486,61256.0,61255.0,0.001924]
[1719458852419,3.07909486,61256.0,61255.0,0.001924]
[1719458852801,3.44799582,61256.0,61255.0,0.001924]
[1719458853008,3.64794062,61256.0,61250.0,0.000924]
[1719458853281,2.366962,61251.0,61250.0,0.000924]
[1719458853597,3.23058015,61251.0,61250.0,0.000924]
[1719458854565,3.37737195,61251.0,61250.0,0.000924]
[1719458855061,3.58393535,61251.0,61250.0,0.000924]
[1719458855277,3.74626906,61251.0,61250.0,0.000924]
[1719458855671,3.73526906,61251.0,61250.0,0.000924]
[1719458856016,3.74926906,61251.0,61250.0,0.000924]
[1719458856219,3.70685866,61251.0,61250.0,0.000924]
[1719458856423,3.85355275,61251.0,61250.0,0.000924]
[1719458856670,3.70685866,61251.0,61250.0,0.000924]
[1719458857045,3.70685866,61251.0,61228.0,0.467]
[1719458857046,0.489931,61233.0,61228.0,0.467]
[1719458857224,0.489931,61233.0,61225.0,0.09051046]
[1719458857225,0.163318,61230.0,61225.0,0.09051046]
[1719458857441,0.0954,61226.0,61225.0,0.09051046]
[1719458857646,0.74812337,61226.0,61225.0,0.09051046]
[1719458858918,0.74912337,61226.0,61225.0,0.09351046]
[1719458860070,0.91245237,61226.0,61225.0,0.012207]
[1719458860185,0.91245237,61226.0,61225.0,0.02003513]
[1719458860186,1.06902551,61226.0,61225.0,0.02003513]
[1719458860387,0.91245237,61226.0,61225.0,0.012207]
[1719458861273,1.23811037,61226.0,61225.0,0.009207]
[1719458861589,1.14471037,61226.0,61225.0,0.009207]
[1719458861795,1.24011037,61226.0,61225.0,0.009207]
[1719458863429,0.81805237,61226.0,61225.0,0.009207]
[1719458863627,0.81805237,61226.0,61225.0,0.254007]
[1719458863628,0.65472337,61226.0,61225.0,0.254007]
[1719458863833,0.65472337,61226.0,61225.0,0.397338]
[1719458864038,0.65472337,61226.0,61225.0,0.24186293]
[1719458864285,0.65472337,61226.0,61225.0,0.01706293]
[1719458865939,0.84326881,61226.0,61225.0,0.01706293]
[1719458866171,1.16992681,61226.0,61225.0,0.01706293]
[1719458866374,0.84326881,61226.0,61225.0,0.009207]
[1719458866777,0.84326881,61226.0,61225.0,0.01741302]
[1719458869419,0.81805237,61226.0,61225.0,0.01741302]
[1719458869996,0.65472337,61226.0,61225.0,0.01741302]
[1719458870392,0.65472337,61226.0,61225.0,0.03741302]
[1719458870785,0.65472337,61226.0,61225.0,0.18074402]
[1719458870986,0.65472337,61226.0,61225.0,0.20074402]
[1719458875643,0.65472337,61226.0,61225.0,0.52740702]
[1719458875838,0.65472337,61226.0,61225.0,0.18074402]
[1719458876057,0.65472337,61226.0,61225.0,0.52740702]
[1719458876464,0.65472337,61226.0,61225.0,0.20074402]
[1719458876671,0.65472337,61226.0,61225.0,0.18074402]
[1719458884751,0.75022337,61226.0,61225.0,0.18074402]
[1719458886122,0.75022337,61226.0,61225.0,0.01741302]
[1719458886123,1.59243834,61226.0,61225.0,0.01741302]
[1719458886507,1.49693834,61226.0,61225.0,0.009207]
[1719458886621,1.19328034,61226.0,61225.0,0.00914427]
[1719458886850,0.68029334,61226.0,61225.0,0.00914427]
[1719458887054,0.77579334,61226.0,61225.0,0.10764427]
[1719458887246,0.77579334,61226.0,61225.0,0.1158935]
[1719458887532,0.77579334,61226.0,61225.0,0.10764427]
[1719458887750,0.77579334,61226.0,61225.0,0.1158935]
[1719458888135,0.77579334,61226.0,61225.0,1.42155248]
[1719458888136,0.67829334,61226.0,61225.0,1.42155248]
[1719458888393,0.67829334,61226.0,61225.0,1.55865248]
[1719458888601,0.65272337,61226.0,61225.0,1.65865248]
[1719458889063,0.66672337,61226.0,61225.0,1.65865248]
[1719458889485,0.65272337,61226.0,61225.0,1.65865248]
[1719458889860,0.65372337,61226.0,61225.0,1.66165248]
[1719458892525,0.65372337,61226.0,61225.0,1.33498948]
[1719458892736,0.65372337,61226.0,61225.0,0.98832648]
[1719458892935,0.65372337,61226.0,61225.0,0.88832648]
[1719458893137,0.65372337,61226.0,61225.0,0.0203935]
[1719458893398,0.71909571,61226.0,61225.0,0.0203935]
[1719458893668,0.65372337,61226.0,61225.0,0.01214427]
[1719458894016,0.67929181,61226.0,61225.0,0.01214427]
[1719458894458,1.16927881,61226.0,61225.0,0.01214427]
[1719458894632,1.16927881,61226.0,61225.0,0.00914427]
[1719458894633,1.16827881,61226.0,61225.0,0.00914427]
[1719458894862,1.28707881,61226.0,61225.0,0.00914427]
[1719458895063,1.29007881,61226.0,61225.0,0.00914427]
[1719458895382,1.61673681,61226.0,61225.0,0.00914427]
[1719458895589,1.77907052,61226.0,61225.0,0.00914427]
[1719458895786,2.4650675,61226.0,61225.0,0.00914427]
[1719458896078,2.4880675,61226.0,61225.0,0.00914427]
[1719458896240,2.4910675,61226.0,61225.0,0.00914427]
[1719458896629,2.4880675,61226.0,61225.0,0.00914427]
[1719458897345,2.5894675,61226.0,61225.0,0.00914427]
[1719458897991,2.7894675,61226.0,61225.0,0.00914427]
[1719458898271,2.7914675,61226.0,61225.0,0.00914427]
[1719458898486,2.47637449,61226.0,61225.0,0.00914427]
[1719458898900,2.48637449,61226.0,61225.0,0.00914427]
[1719458899306,2.12404078,61226.0,61225.0,0.00914427]
[1719458899528,1.4350438,61226.0,61225.0,0.00914427]
[1719458899739,1.55741323,61226.0,61225.0,0.00914427]
[1719458900031,1.4350438,61226.0,61225.0,0.00914427]
[1719458905384,1.53292064,61226.0,61225.0,0.00914427]
[1719458906816,1.4350438,61226.0,61225.0,0.00914427]
[1719458907015,1.53291672,61226.0,61225.0,0.00914427]
[1719458907565,1.4350438,61226.0,61225.0,0.00914427]
[1719458908037,0.3751988,61226.0,61225.0,0.00914427]
[1719458908278,0.3751988,61226.0,61225.0,0.01772527]
[1719458909237,0.3751988,61226.0,61225.0,0.72742273]
[1719458909479,0.34963036,61226.0,61225.0,0.70742273]
[1719458910009,0.34963036,61226.0,61225.0,0.01772527]
[1719458910736,0.34963036,61226.0,61225.0,0.28235973]
[1719458911477,0.34963036,61226.0,61225.0,0.26235973]
[1719458912509,0.07736709,61226.0,61225.0,0.26235973]
[1719458912943,0.07736709,61226.0,61225.0,0.18105627]
[1719458916373,0.07736709,61226.0,61225.0,0.01772527]
[1719458916896,0.24069609,61226.0,61225.0,0.01772527]
[1719458919662,0.26626565,61226.0,61225.0,0.01772527]
[1719458919862,0.24069609,61226.0,61225.0,0.00914427]
[1719458920111,0.26626566,61226.0,61225.0,0.00914427]
[1719458920445,0.10293666,61226.0,61225.0,0.18115212]
[1719458920662,0.07736709,61226.0,61225.0,0.01782112]
[1719458922197,0.07736709,61226.0,61225.0,0.18115212]
[1719458922408,0.10293789,61226.0,61225.0,0.01782112]
[1719458933042,1.05461708,61226.0,61225.0,0.01782112]
[1719458933243,1.20521708,61226.0,61225.0,0.01782112]
[1719458933441,1.30310054,61226.0,61225.0,0.00914427]
[1719458933687,1.16658289,61226.0,61225.0,0.00914427]
[1719458934927,1.36658289,61226.0,61225.0,0.00914427]
[1719458935062,1.69324089,61226.0,61225.0,0.00914427]
[1719458935513,1.81563863,61226.0,61225.0,0.00914427]
[1719458935683,1.49324089,61226.0,61225.0,0.00914427]
[1719458935857,1.6555746,61226.0,61225.0,0.00914427]
[1719458937073,1.8555746,61226.0,61225.0,0.00914427]
[1719458937630,1.6555746,61226.0,61225.0,0.00914427]
[1719458938350,1.80245189,61226.0,61225.0,0.00914427]
[1719458938556,1.80257391,61226.0,61225.0,0.00914427]
[1719458938916,1.80257379,61226.0,61225.0,0.00914427]
[1719458941010,1.6555746,61226.0,61225.0,0.00914427]
[1719458941217,1.80257872,61226.0,61225.0,0.00914427]
[1719458942265,2.00257872,61226.0,61225.0,0.00914427]
[1719458943014,2.09807872,61226.0,61225.0,0.00914427]
[1719458943964,2.09807431,61226.0,61225.0,0.00914427]
[1719458945402,1.89807431,61226.0,61225.0,0.00914427]
[1719458946037,2.26041329,61226.0,61225.0,0.00914427]
[1719458947138,2.26041199,61226.0,61225.0,0.00914427]
[1719458947557,2.0604055,61226.0,61225.0,0.00914427]
[1719458948843,2.2604055,61226.0,61225.0,0.00914427]
[1719458950385,2.46038721,61226.0,61225.0,0.00914427]
[1719458950591,2.31341358,61226.0,61225.0,0.00914427]
[1719458952382,2.11341358,61226.0,61225.0,0.00914427]
[1719458952580,2.31341358,61226.0,61225.0,0.00914427]
[1719458952931,2.11341358,61226.0,61225.0,0.00914427]
[1719458954706,1.95107987,61226.0,61225.0,0.00914427]
[1719458954903,1.75107987,61226.0,61225.0,0.00914427]
[1719458955109,1.67401374,61226.0,61225.0,0.00914427]
[1719458955310,1.52707987,61226.0,61225.0,0.00914427]
[1719458956530,0.61592489,61226.0,61225.0,0.00914427]
[1719458956780,0.68842489,61226.0,61225.0,0.00914427]
[1719458956989,0.10293789,61226.0,61225.0,0.22794427]
[1719458957190,0.10293789,61226.0,61225.0,0.7266814]
[1719458957586,0.10293789,61226.0,61225.0,0.4000184]
[1719458958250,0.09293789,61226.0,61225.0,0.4000184]
[1719458958656,0.09393789,61226.0,61225.0,0.4000184]
[1719458958909,0.09293789,61226.0,61225.0,0.4000184]
[1719458960626,0.09393789,61226.0,61225.0,0.4000184]
[1719458962585,0.09393789,61226.0,61225.0,1.0733444]
[1719458962792,0.09393789,61226.0,61225.0,1.23568338]
[1719458963219,0.06836709,61226.0,61225.0,1.56234638]
[1719458963872,0.06736709,61226.0,61225.0,1.56234638]
[1719458964307,0.06736709,61226.0,61225.0,1.56434638]
[1719458964718,0.06736709,61226.0,61225.0,1.56234638]
[1719458964933,0.06836709,61226.0,61225.0,1.56434638]
[1719458968172,0.06920709,61226.0,61225.0,0.4020184]
[1719458970485,0.06920709,61226.0,61225.0,0.4000184]
[1719458970486,0.06820709,61226.0,61225.0,0.4000184]
[1719458970693,0.07020709,61226.0,61225.0,0.4000184]
[1719458971051,0.06820709,61226.0,61225.0,0.4000184]
[1719458971627,0.07020709,61226.0,61225.0,0.4000184]
[1719458971830,0.06820709,61226.0,61225.0,0.4000184]
[1719458972118,0.07020709,61226.0,61225.0,0.4000184]
[1719458973717,0.19426071,61231.0,61225.0,0.4000184]
[1719458973918,0.02556826,61230.0,61225.0,0.4000184]
[1719458974151,0.6533,61229.0,61225.0,0.4000184]
[1719458975485,0.163329,61226.0,61225.0,0.0178874]
[1719458975690,0.816629,61226.0,61225.0,0.0178874]
[1719458976072,0.84219892,61226.0,61225.0,0.00914427]
[1719458976250,1.85592746,61226.0,61225.0,0.00914427]
[1719458976495,2.09803055,61226.0,61225.0,0.00914427]
[1719458976670,1.97571492,61226.0,61225.0,0.00914427]
[1719458976999,2.4647119,61226.0,61225.0,0.00914427]
[1719458977134,2.4647119,61226.0,61225.0,0.01014427]
[1719458977332,2.4647119,61226.0,61225.0,0.00914427]
[1719458977541,2.53361703,61226.0,61225.0,0.00914427]
[1719458977735,2.53561703,61226.0,61225.0,0.00914427]
[1719458977938,2.53361703,61226.0,61225.0,0.00914427]
[1719458978447,2.54361703,61226.0,61225.0,0.01014427]
[1719458978654,2.30501703,61226.0,61225.0,0.01014427]
[1719458978880,2.40051703,61226.0,61225.0,0.01014427]
[1719458980512,2.3316119,61226.0,61225.0,0.01014427]
[1719458980748,2.4648119,61226.0,61225.0,0.00914427]
[1719458981165,2.4748119,61226.0,61225.0,0.00914427]
[1719458982415,2.49589972,61226.0,61225.0,0.00914427]
[1719458983172,2.85823343,61226.0,61225.0,0.00914427]
[1719458984589,3.00500537,61226.0,61225.0,0.00914427]
[1719458984821,3.20500537,61226.0,61225.0,0.00914427]
[1719458984996,3.05823343,61226.0,61225.0,0.00914427]
[1719458985146,3.20500537,61226.0,61225.0,0.00914427]
[1719458985350,3.2050117,61226.0,61225.0,0.00914427]
[1719458985802,3.20500864,61226.0,61225.0,0.00914427]
[1719458986830,3.19500511,61226.0,61225.0,0.00914427]
[1719458987138,3.20900511,61226.0,61225.0,0.00914427]
[1719458987345,3.04823343,61226.0,61225.0,0.00914427]
[1719458988178,3.06223343,61226.0,61225.0,0.00914427]
[1719458988948,2.80017998,61226.0,61225.0,0.00914427]
[1719458989167,2.63784627,61226.0,61225.0,0.00914427]
[1719458989747,2.80117527,61226.0,61225.0,0.00914427]
[1719458994257,3.29993327,61226.0,61225.0,0.00914427]
[1719458994461,3.29993327,61226.0,61209.0,0.009218]
[1719458994462,0.816857,61210.0,61209.0,0.009218]
[1719458994689,1.63570247,61210.0,61209.0,0.009218]
[1719458994909,1.63570247,61210.0,61209.0,0.01791143]
[1719458995166,1.65870247,61210.0,61209.0,0.009218]
[1719458995804,1.66470247,61210.0,61209.0,0.009218]
[1719458996180,2.35378445,61210.0,61209.0,0.009218]
[1719458996614,2.47604912,61210.0,61209.0,0.009218]
[1719458997128,2.35378445,61210.0,61209.0,0.009218]
[1719458997530,2.34778445,61210.0,61209.0,0.009218]
[1719458997739,2.54778445,61210.0,61209.0,0.009218]
[1719458997939,2.91851827,61210.0,61209.0,0.009218]
[1719458998198,3.01627552,61210.0,61209.0,0.009218]
[1719458998439,3.00227552,61210.0,61209.0,0.009218]
[1719458998646,3.01627552,61210.0,61209.0,0.009218]
[1719459000120,2.91851827,61210.0,61209.0,0.009218]
[1719459000315,3.09061827,61210.0,61209.0,0.009218]
[1719459001723,3.2127578,61210.0,61209.0,0.009218]
[1719459001922,3.09061827,61210.0,61209.0,0.009218]
[1719459002347,3.21272503,61210.0,61209.0,0.009218]
[1719459002882,2.85191827,61210.0,61209.0,0.009218]
[1719459003036,2.94751827,61210.0,61209.0,0.009218]
[1719459003243,2.77401868,61210.0,61209.0,0.009218]
[1719459003440,2.73938486,61210.0,61209.0,0.009218]
[1719459003642,2.93938486,61210.0,61209.0,0.009218]
[1719459003911,2.73936071,61210.0,61209.0,0.009218]
[1719459004208,1.58234145,61210.0,61209.0,0.009218]
[1719459004397,1.67794145,61210.0,61209.0,0.009218]
[1719459004532,1.59634145,61210.0,61209.0,0.009218]
[1719459004739,1.67794145,61210.0,61209.0,0.009218]
[1719459005149,1.69194145,61210.0,61209.0,0.009218]
[1719459006251,1.67794145,61210.0,61209.0,0.009218]
[1719459006639,1.82114145,61210.0,61209.0,0.009218]
[1719459007702,1.02653089,61210.0,61209.0,0.009218]
[1719459007881,1.01753089,61210.0,61209.0,0.009218]
[1719459008071,1.00353089,61210.0,61209.0,0.009218]
[1719459008501,1.01753089,61210.0,61209.0,0.009218]
[1719459008703,1.34427389,61210.0,61209.0,0.009218]
[1719459008910,1.33027389,61210.0,61209.0,0.009218]
[1719459009129,1.34427389,61210.0,61209.0,0.009218]
[1719459009912,2.32243258,61210.0,61209.0,0.009218]
[1719459010087,2.34543258,61210.0,61209.0,0.009218]
[1719459011074,2.33143258,61210.0,61209.0,0.009218]
[1719459011524,2.34543258,61210.0,61209.0,0.009218]
[1719459011906,2.33143258,61210.0,61209.0,0.009218]
[1719459012232,1.01753089,61210.0,61209.0,0.009218]
[1719459012441,0.59414547,61210.0,61209.0,0.172592]
[1719459012652,0.59414547,61210.0,61209.0,0.192592]
[1719459013049,0.59414547,61210.0,61209.0,0.406392]
[1719459013425,0.59414547,61210.0,61209.0,0.733141]
[1719459014395,0.58014547,61210.0,61209.0,1.54897798]
[1719459014588,0.55457555,61210.0,61209.0,1.55897798]
[1719459014915,0.56857555,61210.0,61209.0,1.55897798]
[1719459015316,0.56857555,61210.0,61209.0,1.54897798]
[1719459015593,0.55457555,61210.0,61209.0,1.54897798]
[1719459015932,0.55557555,61210.0,61209.0,1.54897798]
[1719459016357,0.55457555,61210.0,61209.0,1.05989]
[1719459017583,0.55457555,61210.0,61209.0,1.06891678]
[1719459018778,0.55557555,61210.0,61209.0,1.07091678]
[1719459019181,0.55457555,61210.0,61209.0,1.06891678]
[1719459019794,0.55557555,61210.0,61209.0,1.07091678]
[1719459020106,0.55457555,61210.0,61209.0,1.06891678]
[1719459020349,0.55457555,61210.0,61209.0,1.56800476]
[1719459021655,0.55457555,61210.0,61209.0,1.56900476]
[1719459021858,0.55457555,61210.0,61209.0,1.55800476]
[1719459022282,0.55557555,61210.0,61209.0,1.55900476]
[1719459023917,0.55557555,61210.0,61209.0,1.56900476]
[1719459024117,0.55557555,61210.0,61209.0,1.55900476]
[1719459024312,0.55557555,61210.0,61209.0,1.23225576]
[1719459024953,0.55557555,61210.0,61209.0,1.55900476]
[1719459025802,0.55557555,61210.0,61209.0,1.56900476]
[1719459027142,0.55457555,61210.0,61209.0,1.66800476]
[1719459027503,0.55557555,61210.0,61209.0,1.66900476]
[1719459027922,0.55557555,61210.0,61209.0,2.19575376]
[1719459028861,0.55557555,61210.0,61209.0,1.99575376]
[1719459029533,0.55457555,61210.0,61209.0,1.99475376]
[1719459029861,0.55557555,61210.0,61209.0,1.99575376]
[1719459030464,0.55557555,61210.0,61209.0,2.19575376]
[1719459030668,0.32267555,61210.0,61209.0,2.92250276]
[1719459030867,0.08977555,61210.0,61209.0,2.59575376]
[1719459031783,0.08977555,61210.0,61209.0,2.92250276]
[1719459032645,0.1172,61241.0,61239.0,0.02]
[1719459032846,0.09767301,61248.0,61243.0,0.02]
[1719459032847,0.0217059,61244.0,61243.0,0.02]
[1719459033066,0.09848547,61250.0,61249.0,0.489802]
[1719459033067,0.00084,61250.0,61249.0,0.489802]
[1719459033232,0.00084,61250.0,61249.0,0.836337]
[1719459033431,0.00084,61250.0,61249.0,0.84523069]
[1719459033655,0.65391,61250.0,61249.0,0.84523069]
[1719459035224,0.65391,61250.0,61249.0,1.33410467]
[1719459035790,0.65391,61250.0,61249.0,1.31410467]
[1719459035993,0.65391,61250.0,61249.0,1.33410467]
[1719459036214,0.65391,61250.0,61249.0,0.51869569]
[1719459036352,0.65391,61250.0,61249.0,0.84523069]
[1719459036697,0.65991,61250.0,61249.0,0.84523069]
[1719459036901,0.65991,61250.0,61249.0,0.51869569]
[1719459037984,0.65991,61250.0,61249.0,0.17216069]
[1719459038163,0.65991,61250.0,61249.0,0.00889369]
[1719459038363,0.65991,61250.0,61244.0,0.12]
[1719459038685,0.65991,61250.0,61246.0,0.163275]
[1719459039098,0.65991,61250.0,61247.0,0.00882484]
[1719459039302,0.489811,61248.0,61247.0,0.00882484]
[1719459039628,0.489811,61248.0,61232.0,0.02]
[1719459039629,0.326563,61244.0,61232.0,0.02]
[1719459039829,0.326563,61244.0,61231.0,0.326627]
[1719459039830,0.163292,61240.0,61234.0,0.65112674]
[1719459040048,0.65307,61239.0,61234.0,0.163306]
[1719459040778,0.65307,61239.0,61235.0,0.183305]
[1719459041959,0.65307,61239.0,61236.0,0.02]
[1719459042162,0.65307,61239.0,61235.0,0.183305]
[1719459042525,0.65307,61239.0,61231.0,0.326627]
[1719459042526,0.65307,61239.0,61233.0,0.02]
[1719459042726,0.65307,61239.0,61234.0,0.163307]
[1719459042958,0.65307,61239.0,61234.0,0.164307]
[1719459043358,0.65307,61239.0,61234.0,0.163307]
[1719459043565,0.65307,61239.0,61235.0,0.001]
[1719459044123,0.4386,61236.0,61215.0,0.02]
[1719459044321,0.26664244,61238.0,61219.0,0.48782074]
[1719459044322,0.1258,61220.0,61219.0,0.48782074]
[1719459044532,0.163349,61219.0,61210.0,0.957107]
[1719459044748,0.77887,61220.0,61211.0,0.02]
[1719459044749,0.65307,61218.0,61211.0,0.02]
[1719459044919,0.65307,61218.0,61212.0,0.163365]
[1719459045671,0.65307,61218.0,61213.0,0.1]
[1719459045881,0.65307,61218.0,61213.0,0.263361]
[1719459046081,0.65307,61218.0,61214.0,0.08130346]
[1719459046238,0.65307,61218.0,61216.0,0.02]
[1719459046639,0.65807,61218.0,61216.0,0.02]
[1719459046842,0.65807,61218.0,61214.0,0.08130346]
[1719459047039,0.65307,61218.0,61216.0,0.02]
[1719459047441,0.65807,61218.0,61216.0,0.02]
[1719459047642,0.65807,61218.0,61215.0,0.02]
[1719459048970,0.65307,61218.0,61215.0,0.02]
[1719459049215,0.65307,61218.0,61216.0,0.02]
[1719459049558,0.65807,61218.0,61216.0,0.021]
[1719459049754,0.65807,61218.0,61216.0,0.001]
[1719459050176,0.65307,61218.0,61215.0,0.163356]
[1719459050628,0.65807,61218.0,61215.0,0.164356]
[1719459050760,0.65307,61218.0,61216.0,0.02]
[1719459052547,0.65807,61218.0,61216.0,0.021]
[1719459053966,0.65807,61218.0,61216.0,0.001]
[1719459057028,1.040965,61217.0,61216.0,0.001]
[1719459057241,1.694035,61217.0,61216.0,0.001]
[1719459058172,1.694035,61217.0,61207.0,0.009218]
[1719459058173,0.163364,61213.0,61207.0,0.009218]
[1719459058378,0.65307,61212.0,61207.0,0.009218]
[1719459058763,0.816857,61210.0,61207.0,0.009218]
[1719459058991,1.143184,61210.0,61207.0,0.009218]
[1719459060050,1.143184,61210.0,61209.0,0.014218]
[1719459060324,1.52291771,61210.0,61209.0,0.014218]
[1719459060563,1.84966071,61210.0,61209.0,0.014218]
[1719459060759,2.04966071,61210.0,61209.0,0.014218]
[1719459061318,1.84966071,61210.0,61209.0,0.014218]
[1719459061949,1.687327,61210.0,61209.0,0.014218]
[1719459062336,2.24966598,61210.0,61209.0,0.014218]
[1719459062538,2.59840898,61210.0,61209.0,0.009218]
[1719459062742,2.62399045,61210.0,61209.0,0.009218]
[1719459063232,2.59840898,61210.0,61209.0,0.009218]
[1719459063433,2.77474269,61210.0,61209.0,0.010218]
[1719459063634,2.76074269,61210.0,61209.0,0.009218]
[1719459064191,3.27358569,61210.0,61209.0,0.010218]
[1719459064318,3.39916922,61210.0,61209.0,0.010218]
[1719459066644,3.39916922,61210.0,61207.0,0.009218]
[1719459066645,2.4647378,61208.0,61207.0,0.009218]
[1719459066841,3.80408049,61208.0,61207.0,0.009218]
[1719459067265,0.7720448,61206.0,61205.0,0.009218]
[1719459067467,2.42290078,61206.0,61205.0,0.009218]
[1719459067823,2.22290078,61206.0,61205.0,0.009218]
[1719459068027,2.1674292,61206.0,61205.0,0.009218]
[1719459068264,2.32976291,61206.0,61205.0,0.009218]
[1719459068649,3.31005791,61206.0,61205.0,0.009218]
[1719459069832,2.21071022,61202.0,61201.0,0.009218]
[1719459070024,2.21071022,61202.0,61188.0,0.009229]
[1719459070025,1.33359322,61198.0,61188.0,0.009229]
[1719459070239,2.7296102,61198.0,61188.0,0.009229]
[1719459070420,3.31875191,61198.0,61188.0,0.009229]
[1719459072585,3.33275191,61198.0,61188.0,0.009229]
[1719459073145,2.52698178,61198.0,61188.0,0.009229]
[1719459073591,2.76558178,61198.0,61188.0,0.009229]
[1719459076382,3.4090182,61198.0,61188.0,0.009229]
[1719459077500,3.2214324,61198.0,61188.0,0.009229]
[1719459077705,3.4213772,61198.0,61188.0,0.009229]
[1719459077913,3.58371091,61198.0,61188.0,0.009229]
[1719459081030,2.77794078,61198.0,61188.0,0.09053246]
[1719459081404,2.79855117,61198.0,61188.0,0.09053246]
[1719459082138,2.54475117,61198.0,61188.0,0.09053246]
[1719459082312,2.53239217,61198.0,61188.0,0.09053246]
[1719459082518,2.51839217,61198.0,61188.0,0.09053246]
[1719459082749,2.69472588,61198.0,61188.0,0.09053246]
[1719459083135,2.68072588,61198.0,61188.0,0.09053246]
[1719459083490,2.69472588,61198.0,61188.0,0.09053246]
[1719459083688,2.71772588,61198.0,61188.0,0.09053246]
[1719459085282,2.71772588,61198.0,61188.0,0.009229]
[1719459085884,3.2647543,61198.0,61188.0,0.009229]
[1719459086088,3.29034303,61198.0,61188.0,0.009229]
[1719459086420,3.61715103,61198.0,61188.0,0.009229]
[1719459086758,3.60315103,61198.0,61188.0,0.009229]
[1719459087161,3.61715103,61198.0,61188.0,0.009229]
[1719459089170,2.01775842,61194.0,61188.0,0.009229]
[1719459089450,3.12108984,61194.0,61188.0,0.009229]
[1719459089612,3.14408984,61194.0,61188.0,0.009229]
[1719459090409,3.15808984,61194.0,61188.0,0.009229]
[1719459090929,3.15808984,61194.0,61181.0,0.00011828]
[1719459090930,0.51657322,61182.0,61181.0,0.00011828]
[1719459091065,0.51657322,61182.0,61172.0,0.48782074]
[1719459091066,0.490411,61173.0,61172.0,0.48782074]
[1719459091265,1.30663198,61173.0,61172.0,0.48782074]
[1719459091477,0.163492,61165.0,61162.0,0.2]
[1719459091759,0.75087998,61173.0,61163.0,0.209229]
[1719459091760,0.73526054,61164.0,61163.0,0.209229]
[1719459092484,0.73526054,61164.0,61163.0,0.47300058]
[1719459092485,0.57176654,61164.0,61163.0,0.47300058]
[1719459092714,0.57176654,61164.0,61163.0,0.63649758]
[1719459092910,0.57176654,61164.0,61163.0,0.47300058]
[1719459094223,0.57276654,61164.0,61163.0,0.47300058]
[1719459094707,0.57176654,61164.0,61163.0,0.47300058]
[1719459095059,0.57276654,61164.0,61163.0,0.45300058]
[1719459095267,0.57176654,61164.0,61163.0,0.45300058]
[1719459096993,0.57276654,61164.0,61163.0,0.45300058]
[1719459097193,0.57276654,61164.0,61163.0,0.47300058]
[1719459097401,0.2505163,61164.0,61163.0,0.47300058]
[1719459099913,0.2505163,61164.0,61163.0,0.63649758]
[1719459100340,0.2505163,61164.0,61163.0,0.47300058]
[1719459100556,0.25215128,61164.0,61163.0,0.47300058]
[1719459100733,0.25215128,61164.0,61163.0,0.45300058]
[1719459101836,0.25215128,61164.0,61163.0,0.47300058]
[1719459102037,0.25215128,61164.0,61163.0,0.45300058]
[1719459102386,0.25215128,61164.0,61163.0,0.47300058]
[1719459103723,0.25215128,61164.0,61163.0,0.45300058]
[1719459104073,0.25215128,61164.0,61163.0,0.397529]
[1719459104682,0.25115128,61164.0,61163.0,0.397529]
[1719459104886,0.25115128,61164.0,61163.0,0.398529]
[1719459105221,0.25115128,61164.0,61163.0,0.397529]
[1719459105454,0.50628807,61164.0,61163.0,0.009229]
[1719459105659,0.83327707,61164.0,61163.0,0.011229]
[1719459105868,0.79181284,61164.0,61163.0,0.011229]
[1719459106013,1.44579284,61164.0,61163.0,0.011229]
[1719459107411,1.44579284,61164.0,61163.0,0.009229]
[1719459107839,1.44879284,61164.0,61163.0,0.009229]
[1719459108043,1.44579284,61164.0,61163.0,0.009229]
[1719459108385,1.61112655,61164.0,61163.0,0.009229]
[1719459108712,1.45079284,61164.0,61163.0,0.009229]
[1719459110948,2.15992082,61164.0,61163.0,0.009229]
[1719459111139,2.15992082,61164.0,61150.0,0.239234]
[1719459111140,0.2198,61157.0,61150.0,0.239234]
[1719459111485,0.14452842,61158.0,61150.0,0.239234]
[1719459111486,1.276047,61151.0,61150.0,0.239234]
[1719459111599,1.930027,61151.0,61150.0,0.239234]
[1719459111802,1.95562966,61151.0,61150.0,0.239234]
[1719459112209,1.930027,61151.0,61150.0,0.239234]
[1719459112872,1.942027,61151.0,61150.0,0.240234]